Cogmind - Beta 13 @@@ ROGUE MODE // 2024.03.03 @ 08:23:05 Player: Kaz Result: Destroyed by G-34 Mercenary with Small Laser Performance ------------- Evolutions (0) 0 Regions Visited (1) 200 Robots Destroyed (15) 75 Value Destroyed (478) 478 Prototype IDs (0) 0 Alien Tech Used (0) 0 Bonus (0) 0 TOTAL SCORE: 753 Bonus ------- None Cogmind --------- Core Integrity 0/250 Matter 295/300 Energy 247/250 System Corruption 0% Temperature Cool (6) Movement Rolling (115) Ox1 Location -10/Materials Parts ------- > --- POWER (1) -------- Ion Engine > --- PROPULSION (2) --- Compact Wheel > --- UTILITY (2) ------ Small Storage Unit Large Storage Unit > --- WEAPON (2) ------- Small Laser Small Laser > --- INVENTORY (15) --- Aluminum Leg Aluminum Leg Aluminum Leg Aluminum Leg Large Matter Pod (0) Beam Cannon Peak State ------------ > --- POWER ------------ Ion Engine > --- PROPULSION ------- Wheel Compact Wheel > --- UTILITY ---------- Small Storage Unit Large Storage Unit > --- WEAPON ----------- EM Pulse Gun Light Assault Rifle > --- INVENTORY -------- Aluminum Leg Aluminum Leg Aluminum Leg Aluminum Leg Small Laser Small Laser Small Laser [Rating: 7] Favorites ----------- Power Ion Engine Engine Ion Engine Propulsion Compact Wheel Leg Aluminum Leg Wheel Compact Wheel Utility Small Storage Unit Storage Small Storage Unit Weapon Light Assault Rifle Energy Gun Small Laser Ballistic Gun Light Assault Rifle Build | -11 -10 ------- Run | Yrd Mat Slots Evolved . | . . Power . | . . Propulsion . | . . Utility . | . . Weapon . | . . Parts Attached 18 | 6 12 Power 3 | 1 2 Engine 3 | 1 2 Core . | . . Reactor . | . . Propulsion 6 | 2 4 Treads . | . . Leg 2 | . 2 Wheel 4 | 2 2 Hover . | . . Flight . | . . Utility 2 | 1 1 Device . | . . Storage 2 | 1 1 Processor . | . . Hackware . | . . Protection . | . . Artifact . | . . Weapon 7 | 2 5 Energy Gun 5 | . 5 Energy Cannon . | . . Ballistic Gun 2 | 2 . Ballistic Cannon . | . . Launcher . | . . Special Weapon . | . . Impact Weapon . | . . Slashing Weapon . | . . Piercing Weapon . | . . Special Melee Weapon . | . . Unidentified Prototypes . | . . Parts Lost 9 | . 9 Power 1 | . 1 Propulsion 3 | . 3 Utility . | . . Weapon 5 | . 5 Highest Loss Streak 3 | . 3 To Critical Strikes . | . . Average Slot Usage (%) 81 | . 81 Engine 13 | . 13 Leg 2 | . 2 Wheel 17 | . 17 Storage 19 | . 19 Energy Gun 14 | . 14 Ballistic Gun 12 | . 12 Naked Turns . | . . Heaviest Build 33 | 10 33 Greatest Support 26 | 26 26 Greatest Overweight (x) 3 | . 3 Average Overweight (x) . | . . Largest Inventory Capacity 15 | 8 15 Average Capacity 10 | 6 10 Most Carried 7 | 2 7 Average Carried 4 | . 4 Final Capacity 15 | 8 15 Final Carried 6 | 2 6 Class Distribution -------------------- 100% | Mutant Dominant Class ---------------- Mutant | -10/Materials Resources | -11 -10 ----------- Run | Yrd Mat Matter Collected 403 | 247 156 Remotely . | . . Salvage Created 599 | . 599 Parts 40 | . 40 Haulers Intercepted 1 | . 1 Recyclers Shooed 1 | . 1 Parts Field Recycled . | . . Retrieved Matter . | . . Parts Self-Destructed . | . . Prevented . | . . Kills | -11 -10 ------- Run | Yrd Mat Combat Hostiles Destroyed 12 | . 12 Guns 11 | . 11 AOE 1 | . 1 Classes Destroyed 3 | . 3 Hauler 1 | . 1 Watcher 2 | . 2 Grunt 12 | . 12 Best Kill Streak 4 | . 4 Combat Bots Only 4 | . 4 Max Kills in Single Turn 1 | . 1 Gunslinging . | . . Exploded 1 | . 1 Melee . | . . Uniques/NPCs Destroyed . | . . Combat | -11 -10 -------- Run | Yrd Mat Hostile Shots Fired 110 | . 110 Missed 35 | . 35 Damage Taken 965 | . 965 Core 258 | . 258 Absorbed by Shields . | . . Core Remaining (%) 100 | 100 . Volleys Fired 74 | . 74 Largest 2 | . 2 Hottest 80 | . 80 Shots Fired 125 | . 125 Gun 125 | . 125 Cannon . | . . Launcher . | . . Special . | . . Kinetic 58 | . 58 Thermal 41 | . 41 Explosive . | . . Electromagnetic 26 | . 26 Robot Hit Streak 13 | . 13 Robot Miss Streak 2 | . 2 Penetration Max . | . . Secondary Targets 1 | . 1 Max Gunslinging Chain 1 | . 1 Shots Hit Robots 94 | . 94 Core Hits 35 | . 35 Critical Kills . | . . Critical Parts Destroyed . | . . Critical Strikes . | . . Melee Attacks . | . . Impact . | . . Slashing . | . . Piercing . | . . Sneak Attacks . | . . Combat Hostiles . | . . Follow-up Attacks . | . . Damage Inflicted 974 | . 974 Guns 924 | . 924 Cannons . | . . Explosions 35 | . 35 Melee . | . . Ramming 15 | . 15 Kinetic 330 | . 330 Thermal 348 | . 348 Explosive . | . . Electromagnetic 281 | . 281 Impact . | . . Slashing . | . . Piercing . | . . Highest Corruption . | . . Average Corruption . | . . Corruption Purged . | . . Corruption Blocked . | . . Overload Shots . | . . Overflow Damage 9 | . 9 Projectiles . | . . Explosions 9 | . 9 Melee . | . . Knockbacks . | . . Impact . | . . Kinetic . | . . Secondary . | . . Self-Inflicted Damage 40 | . 40 Shots 1 | . 1 Rammed 2 | . 2 Targets Rammed 2 | . 2 Kicked . | . . Crushed . | . . Highest Temperature 114 | . 114 Average Temperature 23 | . 23 Received Heat Transfer 525 | . 525 Siege Activations . | . . Robots Corrupted . | . . Combat Hostiles . | . . Parts Fried 2 | . 2 Impact Corruptions . | . . Robots Melted . | . . Combat Hostiles . | . . Parts Melted 2 | . 2 Heat Transferred 750 | . 750 Parts Sabotaged . | . . Parts Stolen . | . . Parts Stripped . | . . Power Chain Reactions 1 | . 1 Alert | -11 -10 ------- Run | Yrd Mat Peak Influence 180 | . 180 Initial . | . . Average 76 | . 80 Maximum Alert Level . | . . Low Security (%) 100 | 100 100 Level 1 . | . . Level 2 . | . . Level 3 . | . . Level 4 . | . . Level 5 . | . . High Security . | . . Max Security . | . . Squads Dispatched 2 | . 2 Investigation 1 | . 1 Extermination . | . . Reinforcement 1 | . 1 Assault . | . . Garrison . | . . Intercept . | . . Searches Triggered . | . . Construction Impeded . | . . Haulers Reinforced . | . . Active Scanning Responses . | . . Cargo Convoy Interrupts . | . . Stealth | -11 -10 --------- Run | Yrd Mat Distress Signals 1 | . 1 Communications Jammed . | . . Distress Signals . | . . Times Spotted 21 | . 21 Peak Tracking Total 6 | . 6 Tactical Retreats 2 | . 2 Traps | -11 -10 ------- Run | Yrd Mat Traps Triggered . | . . Indirectly . | . . Trap Hack Attempts . | . . Triggered . | . . Disarmed . | . . Reprogrammed . | . . Reused . | . . Traps Extracted . | . . Installed . | . . Triggered 1 | . 1 Machines | -11 -10 ---------- Run | Yrd Mat Machines Disabled 1 | . 1 Max in Single Turn 1 | . 1 Machines Repaired . | . . Machines Dismantled . | . . Machines Sabotaged . | . . Overloaded Fab Kills . | . . Hacking | -11 -10 --------- Run | Yrd Mat Machines Accessed 1 | . 1 Terminals 1 | . 1 Fabricators . | . . Repair Stations . | . . Recycling Units . | . . Scanalyzers . | . . Garrison Access . | . . Total Hacks 2 | . 2 Successful 2 | . 2 Failed . | . . Catastrophic . | . . Database Lockouts . | . . Manual . | . . Terminals 2 | . 2 Fabricators . | . . Repair Stations . | . . Recycling Units . | . . Scanalyzers . | . . Garrison Access . | . . Terminal Hacks 2 | . 2 Record 2 | . 2 Fabricator Hacks . | . . Repair Station Hacks . | . . Recycling Unit Hacks . | . . Scanalyzer . | . . Garrison Access Hacks . | . . Unauthorized Hacks . | . . Terminals . | . . Fabricators . | . . Repair Stations . | . . Recycling Units . | . . Scanalyzers . | . . Garrison Access . | . . Data Cores Recovered . | . . Used . | . . Hacking Detections 1 | . 1 Full Trace Events . | . . Feedback Events . | . . Feedback Blocked . | . . Robot Schematics Acquired . | . . Robots Built . | . . Authchips . | . . Time . | . . Total Robot Build Rating . | . . Part Schematics Acquired . | . . Parts Built . | . . Authchips . | . . Time . | . . Total Part Build Rating . | . . Parts Repaired . | . . Time . | . . Parts Recycled . | . . Recycled Matter . | . . Retrieved Matter . | . . Retrieved Components . | . . Parts Scanalyzed . | . . Part Schematics Acquired . | . . Parts Damaged . | . . Bothacking | -11 -10 ------------ Run | Yrd Mat Used RIF Installer . | . . Robots Hacked . | . . Non-combat . | . . Combat . | . . Robot Hacks Applied . | . . Relay Couplers Released . | . . Fabnet Peak Effective % . | . . Robots Rewired . | . . Allies Hacked . | . . Hacks Repelled . | . . Allies | -11 -10 -------- Run | Yrd Mat Total Allies . | . . Largest Group . | . . Highest-Rated Group . | . . Highest-Rated Ally . | . . Total Orders . | . . Ally Attacks . | . . Total Damage . | . . Kills . | . . Allies Corrupted . | . . Allies Melted . | . . Intel | -11 -10 ------- Run | Yrd Mat Robot Analysis Total . | . . Derelict Logs Recovered . | . . Drone Launches . | . . Drone Recoveries . | . . Exploration | -11 -10 ------------- Run | Yrd Mat Turns Passed 819 | 48 771 Spaces Moved 538 | 42 496 Core 21 | 3 18 Treads . | . . Legs 42 | . 42 Wheels 475 | 39 436 Hover . | . . Flight . | . . Fastest Speed 50 | 50 80 Average Speed 102 | 88 104 Slowest Speed 200 | 100 200 Overloaded Moves . | . . Propulsion Burnouts . | . . Robots Hopped . | . . Cave-ins Triggered . | . . Exploration Rate (%) 40 | 4 76 Regions Visited 1 Branch Regions . Pre-discovered Areas . | . . Known Exits Taken . | . . Unknown Exits Taken 1 | 1 . Scrap Searched . | . . Spaces Dug . | . . Terrain Destroyed 2 | . 2 Melee . | . . Projectile . | . . AOE 2 | . 2 Terrain Rammed . | . . Walls Destroyed . | . . Machines Disabled . | . . Actions | -11 -10 --------- Run | Yrd Mat Total 685 | 49 636 Wait 38 | . 38 Move 537 | 41 496 Hop . | . . Pick Up 14 | 2 12 Fast Attach 8 | 6 2 Attach 7 | . 7 Detach . | . . Swap 3 | . 3 Drop 2 | . 2 Fire 74 | . 74 Melee . | . . Ram 2 | . 2 Kick . | . . Crush . | . . Escape Stasis . | . . Rewire . | . . Trap . | . . Miscellaneous . | . . Route ------- -11/Scrapyard -10/Materials (discovered 4 exits: [*Mat x3] / [*Min]) History --------- Turn | Location | Event 28 | -11/Scrapyard | Discovered new exit (range 15) 49 | -11/Scrapyard | Entered Materials 285 | -10/Materials | Discovered new exit (range 7) 328 | -10/Materials | Build established: Mutant 346 | -10/Materials | Discovered new exit (range 14) 419 | -10/Materials | Core integrity fell below 50% 488 | -10/Materials | Discovered new exit (range 16) 593 | -10/Materials | Lost 3 parts (1n2w) 606 | -10/Materials | Core integrity fell below 20% 731 | -10/Materials | Discovered new exit (range 16) 820 | -10/Materials | Destroyed by G-34 Mercenary with Small Laser Last Messages --------------- 00584_ U-05 Engineer builds a Wall. 00588_ U-05 Engineer lays Concrete. 00618_ G-47 Trooper heat short circuits Lgt. Nuclear Core. 00621_ G-47 Trooper overheating. 00622_ G-47 Trooper heat damages Imp. Heat Sink. 00623_ Aluminum Leg melted. 00623_ G-47 Trooper destroyed. 00626_ K-01 Serf collects debris. 00642_ G-34 Mercenary destroyed. 00652_ Sml. Laser destroyed. 00662_ G-34 Mercenary destroyed. 00665_ Acquired 10 matter. 00667_ K-01 Serf collects debris. 00673_ Acquired Sml. Laser. 00678_ Slammed into T-07 Excavator. 00678_ Destabilizing: System interference. 00678_ Sml. Laser temporarily disabled. 00703_ Acquired Lrg. Matter Pod. 00731_ EXIT=FOUND 00770_ Acquired Beam Cannon. Map ----- +----------------------------------------------------+ | # # #??????? | | #%###### ############ #??????? | | #%#????# #??????????# #??????? | | #!#????# #??????????# #??????? | | #=#????# #??????????# #??????? | | #/####?# #??????????# #??????? | | !%= #?# #??????????# #??????? | | #?# #??????????# #??????? | | """ #?# #????#######+##?????? | | """ #?# #????# #?????? | | """ #?# ###### """ #?????? | | #?# #! """ #?????? | | #?# # """ #?????? | | #?# + #?????? | | ##########+## # """ #?????? | | ## # # """ #?????? | | ## # # """ #?????? | | """ ## """ # # #?????? | | """ ## """ # #######+##?????? | | """ ## """ # #?????# #??????? | | ## # ####### ###????? | | ## # #????? | | ######## #????? | | ######??????# a#????? | | #???????###### #### #????? | | #????????????# ???#@#????? | | ! #???????????# ????#g#????? | | #??????????# ????#g#????? | | #??????????# ?????# #????? | | #??????????# ??????# #????? | | #??????????# ??????# #????? | | #??????????#"???????# #????? | | #???????????????????# #????? | | #####???????????????????? ?????? | | ????????????????????????? ?????? | | ????????????????????????? ?????? | | ?????????????????????????#?????? | | ???????????????????????????????? | | ???????????????????????????????? | | ???????????????????????????????? | | | | | | | | | | | | | | | | | | | | | +----------------------------------------------------+ Best States ------------- Heat Dissipation 25 Energy Generation 10 Energy Capacity 250 Matter Stores 300 Matter Capacity 300 Sight Range 16 Terrain Scan Density 10 Evasion (%) 55 Item Schematics ----------------- None Robot Schematics ------------------ None Fabricated ------------ Nothing Alien Tech Used ----------------- None Achievements -------------- None Challenges ------------ None Game ------ Seed WeaponFortressExtractor Manual? 0 Play Time 00:08:10 Cumulative 137.6 hours Start 2024.03.03 @ 08:14:56 End 2024.03.03 @ 08:23:05 Sessions 1 Manual Loads 0 Difficulty Rogue Special Mode None Game No. 87 Rogue 75 Adventurer 12 Explorer 0 Win Type - Total 1 Types 1/0/0/0/0/0/0/0/0 Lore% 19 Gallery% 36 Achievement% 29 Wizard Run 0 Options --------- Layout 1 ASCII 0 Keyboard 0 Movement Mouse Keybinds 0 Fullscreen 1 Font 32/SmallcapsGlow Map View 77x35 Zoom Use 0% Tactical HUD 1 Map Filters NONE Filters NONE Steam 1 RUN: 1cf9e7e2-8447-4a0f-b4af-52bf7cdb61b2